fUSD/lending_fUSD_20250104
["ID","MTS","AMOUNT","RATE_DAILY","PERIOD"]
[347628213,1735981841213,-3288.75130201,0.0001,2]
[347628214,1735981841322,-500.3568268,0.0001,2]
[347628215,1735981841421,-4897632.2768862,0.0001,2]
[347628216,1735981841434,-6785.14320016,0.0001,2]
[347628217,1735981841445,-1181.02499989,0.0001,2]
[347628218,1735981841458,-700.05,0.0001,2]
[347628219,1735981841469,-982.2799142,0.0001,2]
[347628220,1735981841481,-1897.0,0.0001,2]
[347628221,1735981841516,-544.54481943,0.0001,2]
[347628240,1735981843382,-469175.96244585,0.0001,2]
[347628241,1735981843393,-2947.34833516,0.0001,2]
[347628242,1735981843598,-78829.69599976,0.0001,2]
[347628243,1735981846248,-983.92022996,0.0001,2]
[347628244,1735981846260,-303.6759,0.0001,2]
[347628245,1735981846357,-3695.21734289,0.0001,2]
[347628246,1735981846465,-805.54943853,0.0001,2]
[347628247,1735981846525,-1194.00749477,0.0001,2]
[347628248,1735981846582,-605.4,0.0001,2]
[347628256,1735982678927,6044.49739912,0.0002,120]
[347628288,1735983031721,-502.29806351,8.219e-05,2]
[347628289,1735983031731,-637.84,8.219e-05,2]
[347628290,1735983031741,-83.08392649,9e-05,2]
[347628291,1735983031783,-66.91607351,9e-05,2]
[347628292,1735983031793,-150.0,9e-05,2]
[347628293,1735983031802,-150.0,9e-05,2]
[347628294,1735983031812,-153.84235597,9e-05,2]
[347628295,1735983031821,-1000.0,9.055e-05,2]
[347628296,1735983031831,-943.61,9.087e-05,2]
[347628297,1735983031840,-274.03,9.157e-05,2]
[347628298,1735983031850,-300.0,9.276e-05,2]
[347628299,1735983031859,-1613.67300299,9.277e-05,2]
[347628300,1735983031957,-609.86344662,9.277e-05,2]
[347628305,1735983037496,-2838.68355039,9.277e-05,2]
[347628306,1735983037506,-150.0,9.333e-05,2]
[347628307,1735983037515,-250.0,9.379e-05,2]
[347628308,1735983037525,-161.65,9.459e-05,2]
[347628309,1735983037535,-624.309,9.5e-05,2]
[347628310,1735983037544,-1000.0,9.5e-05,2]
[347628311,1735983037553,-2916.0,9.606e-05,2]
[347628312,1735983037563,-150.0,9.667e-05,2]
[347628313,1735983037576,-917.51,9.67e-05,2]
[347628314,1735983037585,-496.5237,9.8e-05,2]
[347628315,1735983037595,-265.4289,9.8e-05,2]
[347628316,1735983037604,-191.8943,9.8e-05,2]
[347628317,1735983037614,-3865.2965,9.8e-05,2]
[347628318,1735983037624,-379.6317,9.8e-05,2]
[347628319,1735983037633,-500.0,9.898e-05,2]
[347628320,1735983037643,-500.0,9.898e-05,2]
[347628321,1735983037652,-500.0,9.898e-05,2]
[347628322,1735983037662,-589.72,9.898e-05,2]
[347628323,1735983037671,-2194.12,9.898e-05,2]
[347628324,1735983037680,-806.07,9.898e-05,2]
[347628325,1735983037689,-500.0,9.898e-05,2]
[347628326,1735983037699,-500.0,9.898e-05,2]
[347628327,1735983037708,-500.0,9.898e-05,2]
[347628328,1735983037717,-463.18215562,9.898e-05,2]
[347628329,1735983037727,-500.0,9.898e-05,2]
[347628330,1735983037736,-500.0,9.898e-05,2]
[347628332,1735983037746,-1935.856,9.899e-05,2]
[347628334,1735983037755,-500.0,9.899e-05,2]
[347628336,1735983037765,-500.0,9.899e-05,2]
[347628338,1735983037774,-294.50976944,9.899e-05,2]
[347628340,1735983037783,-524.89,9.899e-05,2]
[347628342,1735983037793,-222.37918786,9.899e-05,2]
[347628344,1735983037802,-500.0,9.899e-05,2]
[347628346,1735983037812,-500.0,9.899e-05,2]
[347628348,1735983037821,-206.50894631,9.899e-05,2]
[347628350,1735983037830,-500.0,9.899e-05,2]
[347628351,1735983037839,-389.29222715,9.899e-05,2]
[347628353,1735983037849,-500.0,9.899e-05,2]
[347628354,1735983037858,-500.0,9.899e-05,2]
[347628356,1735983037867,-168.88562534,9.899e-05,2]
[347628358,1735983037876,-500.0,9.899e-05,2]
[347628359,1735983037886,-196.13465102,9.899e-05,2]
[347628360,1735983037895,-500.0,9.899e-05,2]
[347628361,1735983037905,-269.25256015,9.899e-05,2]
[347628362,1735983037914,-500.0,9.899e-05,2]
[347628363,1735983037923,-472.36,9.899e-05,2]
[347628364,1735983037933,-500.0,9.899e-05,2]
[347628365,1735983037943,-293.7,9.899e-05,2]
[347628366,1735983037953,-288.46,9.899e-05,2]
[347628367,1735983037964,-500.0,9.899e-05,2]
[347628368,1735983037974,-317.79,9.899e-05,2]
[347628369,1735983037983,-500.0,9.899e-05,2]
[347628370,1735983037993,-500.0,9.899e-05,2]
[347628371,1735983038002,-500.0,9.899e-05,2]
[347628372,1735983038012,-500.0,9.899e-05,2]
[347628373,1735983038021,-500.0,9.899e-05,2]
[347628374,1735983038031,-500.0,9.899e-05,2]
[347628375,1735983038039,-628.39608865,9.899e-05,2]
[347628376,1735983038048,-500.0,9.899e-05,2]
[347628377,1735983038057,-500.0,9.899e-05,2]
[347628378,1735983038067,-500.0,9.899e-05,2]
[347628379,1735983038076,-500.0,9.899e-05,2]
[347628380,1735983038086,-638.05,9.899e-05,2]
[347628381,1735983038095,-500.0,9.899e-05,2]
[347628382,1735983038105,-500.0,9.899e-05,2]
[347628383,1735983038114,-500.0,9.899e-05,2]
[347628384,1735983038124,-500.0,9.899e-05,2]
[347628385,1735983038133,-2882.43,9.899e-05,2]
[347628386,1735983038142,-500.0,9.899e-05,2]
[347628387,1735983038152,-563.64,9.899e-05,2]
[347628388,1735983038161,-574.74,9.899e-05,2]
[347628389,1735983038171,-642.46,9.899e-05,2]
[347628390,1735983038181,-500.0,9.899e-05,2]
[347628391,1735983038189,-500.0,9.899e-05,2]
[347628392,1735983038200,-500.0,9.899e-05,2]
[347628393,1735983038209,-500.0,9.899e-05,2]
[347628394,1735983038219,-691.69,9.899e-05,2]
[347628395,1735983038228,-579.22,9.899e-05,2]
[347628396,1735983038237,-500.0,9.899e-05,2]
[347628397,1735983038247,-213.87,9.899e-05,2]
[347628398,1735983038256,-500.0,9.899e-05,2]
[347628399,1735983038266,-500.0,9.899e-05,2]
[347628400,1735983038275,-703.48,9.899e-05,2]
[347628401,1735983038284,-500.0,9.899e-05,2]
[347628402,1735983038294,-672.41,9.899e-05,2]
[347628403,1735983038303,-500.0,9.899e-05,2]
[347628404,1735983038313,-500.0,9.899e-05,2]
[347628405,1735983038322,-500.0,9.899e-05,2]
[347628406,1735983038332,-500.0,9.899e-05,2]
[347628407,1735983038341,-229.73623971,9.899e-05,2]
[347628408,1735983038350,-500.0,9.899e-05,2]
[347628409,1735983038359,-500.0,9.899e-05,2]
[347628410,1735983038368,-500.0,9.899e-05,2]
[347628411,1735983038378,-500.0,9.899e-05,2]
[347628412,1735983038387,-552.59,9.899e-05,2]
[347628413,1735983038396,-500.0,9.899e-05,2]
[347628414,1735983038406,-229.76622857,9.899e-05,2]
[347628415,1735983038415,-500.0,9.899e-05,2]
[347628416,1735983038424,-526.21,9.899e-05,2]
[347628417,1735983038434,-707.32,9.899e-05,2]
[347628418,1735983038443,-500.0,9.899e-05,2]
[347628419,1735983038452,-500.0,9.899e-05,2]
[347628420,1735983038461,-1184.89,9.899e-05,2]
[347628421,1735983038471,-500.0,9.899e-05,2]
[347628422,1735983038480,-629.18,9.899e-05,2]
[347628423,1735983038489,-500.0,9.899e-05,2]
[347628424,1735983038498,-500.0,9.899e-05,2]
[347628425,1735983038507,-500.0,9.899e-05,2]
[347628426,1735983038516,-367.75,9.899e-05,2]
[347628427,1735983038525,-643.74,9.899e-05,2]
[347628428,1735983038535,-500.0,9.899e-05,2]
[347628429,1735983038544,-500.0,9.899e-05,2]
[347628430,1735983038553,-500.0,9.899e-05,2]
[347628431,1735983038562,-500.0,9.899e-05,2]
[347628432,1735983038571,-500.0,9.899e-05,2]
[347628433,1735983038580,-500.0,9.899e-05,2]
[347628434,1735983038590,-500.0,9.899e-05,2]
[347628435,1735983038599,-500.0,9.899e-05,2]
[347628436,1735983038607,-569.13,9.899e-05,2]
[347628437,1735983038617,-500.0,9.899e-05,2]
[347628438,1735983038626,-500.0,9.899e-05,2]
[347628439,1735983038635,-500.0,9.899e-05,2]
[347628440,1735983038644,-500.0,9.899e-05,2]
[347628441,1735983038653,-236.06,9.899e-05,2]
[347628442,1735983038663,-171.3,9.899e-05,2]
[347628443,1735983038672,-500.0,9.899e-05,2]
[347628444,1735983038681,-2205.18,9.899e-05,2]
[347628445,1735983038694,-295.5523496,9.899e-05,2]
[347628446,1735983038703,-500.0,9.899e-05,2]
[347628447,1735983038713,-500.0,9.899e-05,2]
[347628448,1735983038723,-500.0,9.899e-05,2]
[347628449,1735983038732,-500.0,9.899e-05,2]
[347628450,1735983038741,-500.0,9.899e-05,2]
[347628451,1735983038751,-532.17722136,9.899e-05,2]
[347628452,1735983038760,-908.05,9.899e-05,2]
[347628453,1735983038769,-500.0,9.899e-05,2]
[347628454,1735983038779,-231.98464702,9.899e-05,2]
[347628455,1735983038788,-500.0,9.899e-05,2]
[347628456,1735983038798,-1618.82,9.899e-05,2]
[347628457,1735983038807,-500.0,9.899e-05,2]
[347628458,1735983038816,-500.0,9.899e-05,2]
[347628459,1735983038825,-500.0,9.899e-05,2]
[347628460,1735983038835,-500.0,9.899e-05,2]
[347628461,1735983038844,-500.0,9.899e-05,2]
[347628462,1735983038853,-500.0,9.899e-05,2]
[347628463,1735983038862,-349.53,9.899e-05,2]
[347628464,1735983038872,-500.0,9.899e-05,2]
[347628465,1735983038881,-942.73,9.899e-05,2]
[347628466,1735983038890,-500.0,9.899e-05,2]
[347628467,1735983038899,-81917.40412478,9.9e-05,2]
[347628468,1735983039142,-978.0,9.9e-05,2]
[347628469,1735983039157,-1501.26519847,9.9e-05,2]
[347628470,1735983039181,-3917.4,9.9e-05,2]
[347628500,1735983039592,-599.46,9.899e-05,2]
[347628502,1735983039602,-252.76895866,9.899e-05,2]
[347628504,1735983039613,-257.13011258,9.899e-05,2]
[347628506,1735983039622,-127.99126991,9.9e-05,2]
[347628508,1735983039652,-7022.45514286,9.9e-05,2]
[347628509,1735983039664,-532.245529,9.9e-05,2]
[347628510,1735983039675,-280.27949968,9.9e-05,2]
[347628511,1735983039770,-253.90758358,9.9e-05,2]
[347628512,1735983039831,-5000.0,9.9e-05,2]
[347628513,1735983039843,-2835.104616,9.9e-05,2]
[347628514,1735983039892,-481.51,9.9e-05,2]
[347628515,1735983039904,-649.84901329,9.9e-05,2]
[347628516,1735983039917,-544.34473846,9.9e-05,2]
[347628517,1735983040007,-537.49993158,9.9e-05,2]
[347628525,1735983042508,-500.0,9.899e-05,2]
[347628526,1735983042517,-500.0,9.899e-05,2]
[347628527,1735983042527,-3815.1,9.9e-05,2]
[347628528,1735983042568,-709.07707001,9.9e-05,2]
[347628529,1735983042579,-1863.31369765,9.9e-05,2]
[347628530,1735983042591,-957.37092,9.9e-05,2]
[347628531,1735983042628,-107419.19679632,9.9e-05,2]
[347628532,1735983042639,-3948.605571,9.9e-05,2]
[347628533,1735983042688,-6307.68654305,9.9e-05,2]
[347628534,1735983042804,-2438.03329522,9.9e-05,2]
[347628535,1735983042815,-89015.23433836,9.9e-05,2]
[347628547,1735983045485,-489.9895,9.899e-05,2]
[347628548,1735983045510,-10.0105,9.899e-05,2]
[347628549,1735983045520,-19111.9895,9.9e-05,2]
[347628550,1735983045606,-108137.73712539,9.9e-05,2]
[347628551,1735983045722,-13067.56423752,9.9e-05,2]
[347628552,1735983045734,-53821.90895195,9.9e-05,2]
[347628555,1735983107266,207.65517926,0.0002,120]
[347628558,1735983996228,-167.66,7.307e-05,2]
[347628559,1735983996251,-130.05020789,8.219e-05,2]
[347628672,1735984231721,-508.99979211,8.219e-05,2]
[347628673,1735984231731,-499.72193979,8.916e-05,2]
[347628674,1735984231743,-437.79806021,8.916e-05,2]
[347628675,1735984231752,-250.0,8.935e-05,2]
[347628676,1735984231762,-1000.0,8.977e-05,2]
[347628677,1735984231771,-150.0,9e-05,2]
[347628678,1735984231780,-150.0,9e-05,2]
[347628679,1735984231791,-150.0,9e-05,2]
[347628680,1735984231998,-2702.14831575,9e-05,2]
[347628681,1735984232009,-250.0,9.017e-05,2]
[347628682,1735984232018,-500.0,9.059e-05,2]
[347628683,1735984232039,-182.05,9.211e-05,2]
[347628684,1735984232052,-274.03,9.278e-05,2]
[347628685,1735984232062,-150.0,9.288e-05,2]
[347628686,1735984232073,-1402.63,9.328e-05,2]
[347628687,1735984232083,-944.34,9.451e-05,2]
[347628688,1735984232093,-38.2861932,9.5e-05,2]
[347628689,1735984232128,-111.7138068,9.5e-05,2]
[347628690,1735984232137,-150.0,9.5e-05,2]
[347628691,1735984232147,-634.536,9.5e-05,2]
[347628692,1735984232156,-167.47,9.575e-05,2]
[347628693,1735984232166,-382.0817,9.799e-05,2]
[347628695,1735984232176,-500.0,9.8e-05,2]
[347628697,1735984232186,-106.5743496,9.8e-05,2]
[347628698,1735984232198,-856.04257068,9.8e-05,2]
[347628700,1735984232228,-1691.761356,9.8e-05,2]
[347628703,1735984232253,-321.13710808,9.8e-05,2]
[347628705,1735984232266,-80117.1405887,9.8e-05,2]
[347628707,1735984232276,-1000.0,9.8e-05,2]
[347628708,1735984232286,-1294.5943,9.8e-05,2]
[347628709,1735984232298,-1000.0,9.897e-05,2]
[347628710,1735984232307,-338.9418,9.897e-05,2]
[347628711,1735984232316,-500.30312519,9.899e-05,2]
[347628712,1735984232327,-500.0,9.899e-05,2]
[347628713,1735984232338,-500.0,9.899e-05,2]
[347628714,1735984232347,-350.01,9.899e-05,2]
[347628715,1735984232357,-500.0,9.899e-05,2]
[347628716,1735984232366,-500.0,9.899e-05,2]
[347628717,1735984232375,-500.0,9.899e-05,2]
[347628718,1735984232386,-500.0,9.899e-05,2]
[347628719,1735984232395,-500.0,9.899e-05,2]
[347628720,1735984232405,-500.0,9.899e-05,2]
[347628721,1735984232416,-500.0,9.899e-05,2]
[347628722,1735984232425,-500.0,9.899e-05,2]
[347628723,1735984232435,-500.0,9.899e-05,2]
[347628724,1735984232444,-599.441975,9.899e-05,2]
[347628725,1735984232454,-500.0,9.899e-05,2]
[347628726,1735984232464,-262.55136224,9.899e-05,2]
[347628727,1735984232473,-500.0,9.899e-05,2]
[347628728,1735984232484,-500.0,9.899e-05,2]
[347628729,1735984232494,-473.46,9.899e-05,2]
[347628730,1735984232503,-500.0,9.899e-05,2]
[347628731,1735984232513,-500.0,9.899e-05,2]
[347628732,1735984232522,-500.0,9.899e-05,2]
[347628733,1735984232531,-1135.52,9.899e-05,2]
[347628734,1735984232542,-500.0,9.899e-05,2]
[347628735,1735984232551,-500.0,9.899e-05,2]
[347628736,1735984232560,-500.0,9.899e-05,2]
[347628737,1735984232569,-500.0,9.899e-05,2]
[347628738,1735984232578,-500.0,9.899e-05,2]
[347628739,1735984232587,-500.0,9.899e-05,2]
[347628740,1735984232597,-339.91623357,9.899e-05,2]
[347628741,1735984232606,-500.0,9.899e-05,2]
[347628742,1735984232615,-500.0,9.899e-05,2]
[347628743,1735984232624,-2113.3,9.899e-05,2]
[347628744,1735984232633,-500.0,9.899e-05,2]
[347628745,1735984232642,-500.0,9.899e-05,2]
[347628746,1735984232651,-218.89382481,9.899e-05,2]
[347628747,1735984232660,-1551.37,9.899e-05,2]
[347628748,1735984232670,-542.83,9.899e-05,2]
[347628749,1735984232678,-475.32,9.899e-05,2]
[347628750,1735984232688,-500.0,9.899e-05,2]
[347628751,1735984232697,-500.0,9.899e-05,2]
[347628752,1735984232706,-500.0,9.899e-05,2]
[347628753,1735984232717,-500.0,9.899e-05,2]
[347628754,1735984232726,-500.0,9.899e-05,2]
[347628755,1735984232735,-856.23,9.899e-05,2]
[347628756,1735984232744,-500.0,9.899e-05,2]
[347628757,1735984232753,-2018.02,9.899e-05,2]
[347628758,1735984232763,-519.15513449,9.899e-05,2]
[347628759,1735984232773,-500.0,9.899e-05,2]
[347628760,1735984232782,-500.0,9.899e-05,2]
[347628761,1735984232792,-248.69016506,9.899e-05,2]
[347628762,1735984232802,-500.0,9.899e-05,2]
[347628763,1735984232811,-500.0,9.899e-05,2]
[347628764,1735984232820,-500.0,9.899e-05,2]
[347628765,1735984232829,-500.0,9.899e-05,2]
[347628766,1735984232838,-811.67,9.899e-05,2]
[347628767,1735984232847,-903.45,9.899e-05,2]
[347628768,1735984232857,-500.0,9.899e-05,2]
[347628769,1735984232866,-500.0,9.899e-05,2]
[347628770,1735984232875,-304.71355646,9.899e-05,2]
[347628771,1735984232885,-500.0,9.899e-05,2]
[347628772,1735984232895,-280.2,9.899e-05,2]
[347628773,1735984232904,-500.0,9.899e-05,2]
[347628774,1735984232913,-500.0,9.899e-05,2]
[347628775,1735984232923,-500.0,9.899e-05,2]
[347628776,1735984232933,-483.93972692,9.899e-05,2]
[347628777,1735984232942,-692.95,9.899e-05,2]
[347628778,1735984232951,-460.8,9.899e-05,2]
[347628779,1735984232961,-500.0,9.899e-05,2]
[347628780,1735984232970,-500.0,9.899e-05,2]
[347628781,1735984232979,-503.15,9.899e-05,2]
[347628782,1735984232988,-644.39,9.899e-05,2]
[347628783,1735984232997,-500.0,9.899e-05,2]
[347628784,1735984233006,-670.93,9.899e-05,2]
[347628785,1735984233015,-674.17,9.899e-05,2]
[347628786,1735984233024,-31.86388629,9.899e-05,2]
[347628787,1735984233038,-468.13611371,9.899e-05,2]
[347628788,1735984233048,-500.0,9.899e-05,2]
[347628789,1735984233058,-230.0059914,9.899e-05,2]
[347628790,1735984233067,-500.0,9.899e-05,2]
[347628791,1735984233076,-500.0,9.899e-05,2]
[347628792,1735984233086,-500.0,9.899e-05,2]
[347628793,1735984233095,-500.0,9.899e-05,2]
[347628794,1735984233105,-500.0,9.899e-05,2]
[347628795,1735984233114,-614.11,9.899e-05,2]
[347628796,1735984233124,-500.0,9.899e-05,2]
[347628797,1735984233133,-365.83,9.899e-05,2]
[347628798,1735984233143,-500.0,9.899e-05,2]
[347628799,1735984233152,-500.0,9.899e-05,2]
[347628800,1735984233161,-529.57,9.899e-05,2]
[347628801,1735984233171,-323.98,9.899e-05,2]
[347628802,1735984233181,-931.85,9.899e-05,2]
[347628803,1735984233190,-322.23113056,9.899e-05,2]
[347628804,1735984233200,-500.0,9.899e-05,2]
[347628805,1735984233209,-677.85,9.899e-05,2]
[347628806,1735984233218,-500.0,9.899e-05,2]
[347628807,1735984233228,-500.0,9.899e-05,2]
[347628808,1735984233238,-500.0,9.899e-05,2]
[347628809,1735984233247,-500.0,9.899e-05,2]
[347628810,1735984233257,-500.0,9.899e-05,2]
[347628811,1735984233267,-616.92,9.899e-05,2]
[347628812,1735984233277,-500.0,9.899e-05,2]
[347628813,1735984233286,-500.0,9.899e-05,2]
[347628814,1735984233297,-150.92551481,9.899e-05,2]
[347628815,1735984233307,-1244.69,9.899e-05,2]
[347628816,1735984233316,-500.0,9.899e-05,2]
[347628817,1735984233326,-565.15,9.899e-05,2]
[347628818,1735984233339,-602.97,9.899e-05,2]
[347628819,1735984233349,-500.0,9.899e-05,2]
[347628820,1735984233359,-500.0,9.899e-05,2]
[347628821,1735984233368,-500.0,9.899e-05,2]
[347628822,1735984233379,-500.0,9.899e-05,2]
[347628823,1735984233389,-500.0,9.899e-05,2]
[347628824,1735984233398,-155.38124952,9.899e-05,2]
[347628825,1735984233410,-72.04875048,9.899e-05,2]
[347628826,1735984233420,-500.0,9.899e-05,2]
[347628827,1735984233430,-139.42624957,9.899e-05,2]
[347628828,1735984233442,-321.05375043,9.899e-05,2]
[347628829,1735984233452,-390.60003354,9.899e-05,2]
[347628830,1735984233462,-486.74621603,9.899e-05,2]
[347628831,1735984233474,-13.25378397,9.899e-05,2]
[347628832,1735984233483,-916.39055603,9.899e-05,2]
[347628833,1735984233507,-1186.30944397,9.899e-05,2]
[347628834,1735984233516,-595.98,9.899e-05,2]
[347628835,1735984233526,-314.26,9.899e-05,2]
[347628836,1735984233535,-500.0,9.899e-05,2]
[347628837,1735984233547,-500.0,9.899e-05,2]
[347628838,1735984233558,-500.0,9.899e-05,2]
[347628839,1735984233568,-257.79247472,9.899e-05,2]
[347628840,1735984233584,-242.20752528,9.899e-05,2]
[347628841,1735984233595,-500.0,9.899e-05,2]
[347628842,1735984233606,-500.0,9.899e-05,2]
[347628843,1735984233615,-500.0,9.899e-05,2]
[347628844,1735984233625,-500.0,9.899e-05,2]
[347628845,1735984233635,-500.0,9.899e-05,2]
[347628846,1735984233646,-500.0,9.899e-05,2]
[347628847,1735984233656,-500.0,9.899e-05,2]
[347628848,1735984233666,-500.0,9.899e-05,2]
[347628849,1735984233676,-500.0,9.899e-05,2]
[347628850,1735984233686,-615.69,9.899e-05,2]
[347628851,1735984233696,-500.0,9.899e-05,2]
[347628852,1735984233707,-500.0,9.899e-05,2]
[347628853,1735984233716,-749.26,9.899e-05,2]
[347628854,1735984233726,-500.0,9.899e-05,2]
[347628855,1735984233736,-456.47813631,9.899e-05,2]
[347628858,1735984237582,-43.52186369,9.899e-05,2]
[347628859,1735984237592,-500.0,9.899e-05,2]
[347628860,1735984237602,-500.0,9.899e-05,2]
[347628861,1735984237610,-500.0,9.899e-05,2]
[347628862,1735984237620,-500.0,9.899e-05,2]
[347628864,1735984237629,-500.0,9.899e-05,2]
[347628865,1735984237638,-500.0,9.899e-05,2]
[347628866,1735984237647,-193.39,9.899e-05,2]
[347628867,1735984237656,-2762.33,9.899e-05,2]
[347628868,1735984237666,-500.0,9.899e-05,2]
[347628869,1735984237675,-500.0,9.899e-05,2]
[347628870,1735984237685,-500.0,9.899e-05,2]
[347628871,1735984237693,-908.58,9.899e-05,2]
[347628872,1735984237703,-870.21,9.899e-05,2]
[347628873,1735984237712,-6963.42927555,9.9e-05,2]
[347628874,1735984237725,-12043.70941334,9.9e-05,2]
[347628875,1735984237737,-4987.94296,9.9e-05,2]
[347628876,1735984237748,-9636.39764577,9.9e-05,2]
[347628877,1735984237762,-977.0,9.9e-05,2]
[347628878,1735984237781,-14169.32642363,9.9e-05,2]
[347628879,1735984237870,-653.67901261,9.9e-05,2]
[347628880,1735984237881,-880.82102011,9.9e-05,2]
[347628881,1735984237892,-692.81268292,9.9e-05,2]
[347628882,1735984237910,-526.48,9.899e-05,2]
[347628883,1735984237919,-115.205354,9.9e-05,2]
[347628884,1735984237931,-543.3154291,9.9e-05,2]
[347628890,1735984239688,-5372.91034216,9.9e-05,2]
[347628891,1735984239699,-482.145,9.9e-05,2]
[347628892,1735984239785,-2706.2398,9.9e-05,2]
[347628893,1735984239796,-2828.55003,9.9e-05,2]
[347628894,1735984240011,-3073.13814854,9.9e-05,2]
[347628895,1735984240024,-753.69950238,9.9e-05,2]
[347628907,1735984242750,-348.6564851,9.9e-05,2]
[347628908,1735984242938,-33.07891194,9.9e-05,2]
[347628909,1735984242950,-366.34170336,9.9e-05,2]
[347628910,1735984242962,-22429.0,9.9e-05,2]
[347628911,1735984242974,-1553.75581049,9.9e-05,2]
[347628918,1735984245835,-207.77,9.899e-05,2]
[347628919,1735984245845,-500.0,9.899e-05,2]
[347628920,1735984245854,-257.19,9.9e-05,2]
[347628921,1735984246051,-400.46971432,9.9e-05,2]
[347628922,1735984246070,-26114.1106406,9.9e-05,2]
[347628923,1735984246080,-1775.60604124,9.91e-05,2]
[347628924,1735984246095,-25.86395876,9.91e-05,2]
[347628925,1735984246105,-251.873874,9.973e-05,2]
[347628926,1735984246114,-151.771848,9.973e-05,2]
[347628928,1735984246124,-151.771848,9.973e-05,2]
[347628929,1735984246133,-151.771848,9.973e-05,2]
[347628931,1735984246143,-151.771848,9.973e-05,2]
[347628933,1735984246152,-151.771848,9.973e-05,2]
[347628935,1735984246161,-150.773349,9.973e-05,2]
[347628937,1735984246171,-151.771848,9.973e-05,2]
[347628938,1735984246180,-151.771848,9.973e-05,2]
[347628939,1735984246190,-151.771848,9.973e-05,2]
[347628940,1735984246200,-156.764343,9.973e-05,2]
[347628941,1735984246209,-151.771848,9.973e-05,2]
[347628942,1735984246218,-199.74373395,9.973e-05,2]
[347628943,1735984246228,-151.771848,9.973e-05,2]
[347628944,1735984246238,-151.771848,9.973e-05,2]
[347628945,1735984246247,-151.771848,9.973e-05,2]
[347628946,1735984246256,-1201.62298997,9.98e-05,2]
[347628952,1735984648497,10000.0,0.0001102,13]
[347628953,1735984655390,40000.0,0.0001102,13]
[347628954,1735984701845,50000.0,0.0001102,13]
[347628955,1735984742504,50000.0,0.0001102,13]
[347628956,1735984772940,50000.0,0.0001102,13]
[347628957,1735984795965,50000.0,0.0001102,13]
[347628958,1735984814304,16699.62722953,0.0001102,13]
[347628959,1735984854670,10000.0,0.0001303,29]
[347628960,1735984889775,20000.0,0.0001303,29]
[347628961,1735984913672,15000.0,0.0001303,29]
[347628962,1735984935022,10000.0,0.00013022,24]
[347628963,1735984953413,40000.0,0.00013022,24]
[347628964,1735984969548,50000.0,0.00013022,24]
[347628965,1735984994757,50000.0,0.00013022,24]
[347628966,1735985020952,50000.0,0.00013022,24]
[347628967,1735985054926,50000.0,0.00013022,24]
[347628968,1735985083725,50000.0,0.00013022,24]
[347628969,1735985098308,300.47306324,0.00013,25]
[347628970,1735985109966,29982.07355116,0.00013022,24]
[347628971,1735985134727,10000.0,0.0001212,24]
[347628972,1735985146760,40000.0,0.0001212,24]
[347628973,1735985195840,50000.0,0.0001212,24]
[347628975,1735985252520,50000.0,0.0001212,24]
[347628977,1735985307872,50000.0,0.0001212,24]
[347628978,1735985351446,50000.0,0.0001212,24]
[347629005,1735985431829,-655.52,8.219e-05,2]
[347629006,1735985431838,-176.012,8.907e-05,2]
[347629007,1735985431926,-2.828,8.907e-05,2]
[347629008,1735985431935,-1724.6656,8.976e-05,2]
[347629009,1735985432234,-483.04,8.976e-05,2]
[347629010,1735985432246,-1544.70129621,8.976e-05,2]
[347629011,1735985432257,-288.64977397,8.976e-05,2]
[347629012,1735985432269,-1209.10423545,8.976e-05,2]
[347629013,1735985432289,-772.98909437,8.976e-05,2]
[347629014,1735985432298,-150.0,9e-05,2]
[347629015,1735985432308,-150.0,9e-05,2]
[347629017,1735985432317,-519.06968425,9e-05,2]
[347629019,1735985432326,-250.0,9.019e-05,2]
[347629021,1735985432339,-1000.0,9.102e-05,2]
[347629023,1735985432349,-754.88,9.259e-05,2]
[347629025,1735985432358,-300.0,9.493e-05,2]
[347629027,1735985432367,-150.0,9.494e-05,2]
[347629029,1735985432376,-629.95,9.5e-05,2]